Cogmind - Beta 13 *** ADVENTURER MODE // 2024.04.06 @ 00:19:09 Player: Doske Result: Destroyed by 38-980(R) with Subdweller Machine Gun Performance ------------- Evolutions (0) 0 Regions Visited (2) 400 Robots Destroyed (24) 120 Value Destroyed (706) 706 Prototype IDs (0) 0 Alien Tech Used (0) 0 Bonus (0) 0 TOTAL SCORE: 1226 Bonus ------- None Cogmind --------- Core Integrity 0/250 Matter 67/300 Energy 124/125 System Corruption 1% Temperature Cool (0) Movement Rolling (110) Location -10/Subcaves Parts ------- > --- POWER (1) -------- Light Ion Engine > --- PROPULSION (2) --- Subdweller Monowheel (fused) > --- UTILITY (2) ------ Small Storage Unit > --- WEAPON (2) ------- Makeshift Hammer > --- INVENTORY (8) ---- Subdweller Shrapnel Launcher Flamer Mining Claw Peak State ------------ > --- POWER ------------ Subdweller Power Source > --- PROPULSION ------- Subdweller Monowheel > --- UTILITY ---------- (None) > --- WEAPON ----------- Makeshift Hammer Mining Claw > --- INVENTORY -------- Assault Rifle Mining Laser Flamer [Rating: 9] Favorites ----------- Power Ion Engine Engine Ion Engine Propulsion Light Treads Treads Light Treads Wheel Subdweller Monowheel Utility Small Storage Unit Storage Small Storage Unit Processor Signal Interpreter Weapon Assault Rifle Ballistic Gun Assault Rifle Launcher Subdweller Shrapnel Launcher Special Weapon Mining Laser Impact Weapon Makeshift Hammer Slashing Weapon Mining Claw Build | -11 -10 -10 ------- Run | Yrd Mat Sub Slots Evolved . | . . . Power . | . . . Propulsion . | . . . Utility . | . . . Weapon . | . . . Parts Attached 41 | 8 7 26 Power 8 | 1 3 4 Engine 8 | 1 3 4 Core . | . . . Reactor . | . . . Propulsion 9 | 4 . 5 Treads 2 | 2 . . Leg . | . . . Wheel 7 | 2 . 5 Hover . | . . . Flight . | . . . Utility 3 | 1 1 1 Device . | . . . Storage 2 | 1 . 1 Processor 1 | . 1 . Hackware . | . . . Protection . | . . . Artifact . | . . . Weapon 21 | 2 3 16 Energy Gun . | . . . Energy Cannon . | . . . Ballistic Gun 11 | 2 2 7 Ballistic Cannon . | . . . Launcher 2 | . . 2 Special Weapon 4 | . 1 3 Impact Weapon 1 | . . 1 Slashing Weapon 3 | . . 3 Piercing Weapon . | . . . Special Melee Weapon . | . . . Unidentified Prototypes . | . . . Parts Lost 7 | . . 7 Power 1 | . . 1 Propulsion 4 | . . 4 Utility . | . . . Weapon 2 | . . 2 Highest Loss Streak 2 | . . 2 To Critical Strikes 1 | . . 1 Average Slot Usage (%) 87 | . 96 76 Engine 13 | . 13 13 Treads 16 | . 28 2 Wheel 7 | . . 16 Storage 12 | . 14 10 Processor 9 | . 11 7 Ballistic Gun 20 | . 25 14 Special Weapon 1 | . 2 1 Impact Weapon 1 | . . 4 Slashing Weapon 1 | . . 4 Naked Turns 57 | . . 57 Heaviest Build 18 | 14 14 18 Greatest Support 40 | 40 40 40 Greatest Overweight (x) 1 | . . 1 Average Overweight (x) . | . . . Largest Inventory Capacity 8 | 8 8 8 Average Capacity 7 | 6 8 7 Most Carried 8 | 5 8 8 Average Carried 4 | 1 4 5 Final Capacity 8 | 8 8 8 Final Carried 8 | 1 8 3 Class Distribution -------------------- 100% | Mutant Dominant Class ---------------- Mutant | -10/Materials Mutant | -10/Subcaves Resources | -11 -10 -10 ----------- Run | Yrd Mat Sub Matter Collected 948 | 272 388 288 Remotely . | . . . Salvage Created 820 | . 623 197 Parts 53 | . 41 12 Haulers Intercepted . | . . . Recyclers Shooed 1 | . 1 . Parts Field Recycled . | . . . Retrieved Matter . | . . . Parts Self-Destructed 7 | . . 7 Prevented . | . . . Kills | -11 -10 -10 ------- Run | Yrd Mat Sub Combat Hostiles Destroyed 21 | . 16 5 Guns 17 | . 15 2 Cannons 1 | . 1 . AOE 3 | . . 3 Classes Destroyed 5 | . 4 1 Worker 2 | . 2 . Recycler 1 | . 1 . Swarmer 3 | . 3 . Grunt 13 | . 13 . Subdweller 5 | . . 5 Best Kill Streak 4 | . 4 3 Combat Bots Only 3 | . 3 3 Max Kills in Single Turn 2 | . 2 1 Gunslinging 1 | . 1 . Exploded 1 | . . 1 Melee . | . . . Uniques/NPCs Destroyed . | . . . Combat | -11 -10 -10 -------- Run | Yrd Mat Sub Hostile Shots Fired 165 | . 91 74 Missed 46 | . 22 24 Damage Taken 1365 | . 569 796 Core 253 | . 92 161 Absorbed by Shields . | . . . Ignored by Resistances 403 | . 178 225 Regen/Repaired (Parts) 67 | . 67 . Core Remaining (%) 100 | 100 . . Volleys Fired 91 | . 56 35 Largest 2 | . 2 2 Hottest 120 | . 120 120 Shots Fired 162 | . 110 52 Gun 139 | . 106 33 Cannon . | . . . Launcher 9 | . . 9 Special 14 | . 4 10 Kinetic 148 | . 106 42 Thermal 14 | . 4 10 Explosive . | . . . Electromagnetic . | . . . Robot Hit Streak 12 | . 11 12 Robot Miss Streak 2 | . 2 1 Penetration Max . | . . . Secondary Targets 3 | . 3 . Max Gunslinging Chain 1 | . 1 . Shots Hit Robots 105 | . 75 30 Core Hits 48 | . 31 17 Critical Kills 1 | . 1 . Critical Parts Destroyed 1 | . 1 . Critical Strikes 2 | . 2 . Destroy 2 | . 2 . Melee Attacks 18 | . . 18 Impact 12 | . . 12 Slashing 6 | . . 6 Piercing . | . . . Sneak Attacks 1 | . . 1 Combat Hostiles . | . . . Follow-up Attacks . | . . . Damage Inflicted 2376 | . 999 1377 Guns 1138 | . 895 243 Cannons . | . . . Explosions 824 | . . 824 Melee 310 | . . 310 Ramming 8 | . 8 . Kinetic 1962 | . 895 1067 Thermal 96 | . 96 . Explosive . | . . . Electromagnetic . | . . . Impact 310 | . . 310 Slashing . | . . . Piercing . | . . . Highest Corruption 1 | . 1 1 Average Corruption 1 | . 1 1 Corruption Purged . | . . . Corruption Blocked . | . . . Effects 20 | . 9 11 Message Errors 3 | . 1 2 Matter Fused 3 | . . 3 Heat Flow Errors 3 | . 2 1 Energy Discharges 3 | . 3 . Parts Rejected 1 | . 1 . Parts Fused 3 | . . 3 Data Loss (major) 3 | . 2 1 Misfires 1 | . . 1 Overload Shots . | . . . Overflow Damage 80 | . . 80 Projectiles . | . . . Explosions . | . . . Melee 80 | . . 80 Knockbacks 2 | . . 2 Impact 2 | . . 2 Kinetic . | . . . Secondary . | . . . Self-Inflicted Damage 44 | . . 44 Shots 2 | . . 2 Rammed 3 | . 2 1 Targets Rammed 3 | . 2 1 Kicked . | . . . Crushed . | . . . Highest Temperature 219 | . 218 219 Average Temperature 59 | . 47 102 Received Heat Transfer 731 | . 294 437 Siege Activations . | . . . Robots Corrupted . | . . . Combat Hostiles . | . . . Parts Fried 2 | . . 2 Impact Corruptions 2 | . . 2 Robots Melted . | . . . Combat Hostiles . | . . . Parts Melted . | . . . Heat Transferred 200 | . 200 . Parts Sabotaged . | . . . Parts Stolen . | . . . Parts Stripped . | . . . Power Chain Reactions . | . . . Alert | -11 -10 -10 ------- Run | Yrd Mat Sub Peak Influence 214 | . 214 . Initial . | . . . Average 84 | . 89 . Maximum Alert Level 1 | . 1 . Low Security (%) 97 | 100 97 . Level 1 2 | . 2 . Level 2 . | . . . Level 3 . | . . . Level 4 . | . . . Level 5 . | . . . High Security . | . . . Max Security . | . . . Squads Dispatched 4 | . 4 . Investigation 4 | . 4 . Extermination . | . . . Reinforcement . | . . . Assault . | . . . Garrison . | . . . Intercept . | . . . Searches Triggered . | . . . Construction Impeded . | . . . Haulers Reinforced . | . . . Active Scanning Responses . | . . . Cargo Convoy Interrupts . | . . . Stealth | -11 -10 -10 --------- Run | Yrd Mat Sub Distress Signals 4 | . 4 . Communications Jammed . | . . . Distress Signals . | . . . Times Spotted 89 | . 32 57 Peak Tracking Total 5 | . 5 3 Tactical Retreats 10 | . 2 8 Traps | -11 -10 -10 ------- Run | Yrd Mat Sub Traps Triggered 1 | . 1 . Indirectly . | . . . Trap Hack Attempts . | . . . Triggered . | . . . Disarmed . | . . . Reprogrammed 1 | . 1 . Reused 1 | . 1 . Traps Extracted . | . . . Installed . | . . . Triggered 1 | . 1 . Machines | -11 -10 -10 ---------- Run | Yrd Mat Sub Machines Disabled 1 | . . 1 Max in Single Turn 1 | . . 1 Machines Repaired . | . . . Machines Dismantled . | . . . Machines Sabotaged . | . . . Overloaded Fab Kills . | . . . Hacking | -11 -10 -10 --------- Run | Yrd Mat Sub Machines Accessed 7 | . 7 . Terminals 5 | . 5 . Fabricators . | . . . Repair Stations 1 | . 1 . Recycling Units 1 | . 1 . Scanalyzers . | . . . Garrison Access . | . . . Total Hacks 19 | . 19 . Successful 12 | . 12 . Failed 7 | . 7 . Catastrophic . | . . . Database Lockouts . | . . . Manual 16 | . 16 . Terminals 15 | . 15 . Fabricators . | . . . Repair Stations 3 | . 3 . Recycling Units 1 | . 1 . Scanalyzers . | . . . Garrison Access . | . . . Terminal Hacks 3 | . 3 . Terminal Index 1 | . 1 . Unreport Threat 1 | . 1 . Reprogram Traps 1 | . 1 . Fabricator Hacks . | . . . Repair Station Hacks 3 | . 3 . Scan Component 2 | . 2 . Repair 1 | . 1 . Recycling Unit Hacks 1 | . 1 . Report Inventory 1 | . 1 . Scanalyzer . | . . . Garrison Access Hacks . | . . . Unauthorized Hacks 5 | . 5 . Terminals 5 | . 5 . Botnet 5 | . 5 . Fabricators . | . . . Repair Stations . | . . . Recycling Units . | . . . Scanalyzers . | . . . Garrison Access . | . . . Data Cores Recovered . | . . . Used . | . . . Hacking Detections 6 | . 6 . Full Trace Events 4 | . 4 . Feedback Events 1 | . 1 . Corruption 1 | . 1 . Feedback Blocked . | . . . Robot Schematics Acquired . | . . . Robots Built . | . . . Authchips . | . . . Time . | . . . Total Robot Build Rating . | . . . Part Schematics Acquired . | . . . Parts Built . | . . . Authchips . | . . . Time . | . . . Total Part Build Rating . | . . . Parts Repaired 1 | . 1 . Time 26 | . 26 . Parts Recycled . | . . . Recycled Matter . | . . . Retrieved Matter . | . . . Retrieved Components . | . . . Parts Scanalyzed . | . . . Part Schematics Acquired . | . . . Parts Damaged . | . . . Bothacking | -11 -10 -10 ------------ Run | Yrd Mat Sub Used RIF Installer . | . . . Robots Hacked . | . . . Non-combat . | . . . Combat . | . . . Robot Hacks Applied . | . . . Relay Couplers Released . | . . . Fabnet Peak Effective % . | . . . Robots Rewired . | . . . Allies Hacked . | . . . Hacks Repelled . | . . . Allies | -11 -10 -10 -------- Run | Yrd Mat Sub Total Allies . | . . . Largest Group . | . . . Highest-Rated Group . | . . . Highest-Rated Ally . | . . . Total Orders . | . . . Ally Attacks . | . . . Total Damage . | . . . Kills . | . . . Allies Corrupted . | . . . Allies Melted . | . . . Intel | -11 -10 -10 ------- Run | Yrd Mat Sub Robot Analysis Total . | . . . Derelict Logs Recovered . | . . . Drone Launches . | . . . Drone Recoveries . | . . . Exploration | -11 -10 -10 ------------- Run | Yrd Mat Sub Turns Passed 2416 | 78 1315 1023 Spaces Moved 1507 | 46 625 836 Core 144 | 6 . 138 Treads 724 | 31 625 68 Legs . | . . . Wheels 639 | 9 . 630 Hover . | . . . Flight . | . . . Fastest Speed 50 | 50 160 50 Average Speed 124 | 130 160 96 Slowest Speed 160 | 160 160 160 Overloaded Moves . | . . . Propulsion Burnouts . | . . . Robots Hopped . | . . . Cave-ins Triggered . | . . . Exploration Rate (%) 42 | 3 85 38 Regions Visited 2 Branch Regions 1 Pre-discovered Areas 1 | . . 1 Known Exits Taken 1 | . 1 . Unknown Exits Taken 1 | 1 . . Scrap Searched . | . . . Spaces Dug . | . . . Terrain Destroyed 78 | . . 78 Melee . | . . . Projectile . | . . . AOE 78 | . . 78 Terrain Rammed . | . . . Walls Destroyed . | . . . Machines Disabled . | . . . Actions | -11 -10 -10 --------- Run | Yrd Mat Sub Total 1843 | 66 821 956 Wait 136 | . 115 21 Move 1505 | 45 624 836 Hop . | . . . Pick Up 37 | 10 13 14 Fast Attach . | . . . Attach 26 | 8 4 14 Detach 4 | . 1 3 Swap 15 | . 3 12 Drop 11 | 3 3 5 Fire 91 | . 56 35 Melee 15 | . . 15 Ram 1 | . . 1 Kick . | . . . Crush 2 | . 2 . Escape Stasis . | . . . Rewire . | . . . Trap . | . . . Miscellaneous . | . . . Route ------- -11/Scrapyard -10/Materials (discovered 5 exits: *Mat x3 / *Min / *Sub) -10/Subcaves (discovered 2 exits: *Mat / *Rec) History --------- Turn | Location | Event 13 | -11/Scrapyard | Discovered new exit (range 15) 79 | -11/Scrapyard | Entered Materials 308 | -10/Materials | Build established: Mutant 504 | -10/Materials | Discovered new exit (range 16) 526 | -10/Materials | Identified exit to Materials 711 | -10/Materials | Discovered exit to Materials (range 13) 759 | -10/Materials | Discovered new exit (range 6) 765 | -10/Materials | Identified exit to Mines 946 | -10/Materials | Discovered exit to Materials (range 3) 1080 | -10/Materials | Repaired Assault Rifle 1378 | -10/Materials | Discovered new exit (range 11) 1392 | -10/Materials | Identified exit to Subcaves 1394 | -10/Materials | Entered Subcaves 1495 | -10/Subcaves | Ambushed by Subdwellers from Twisted Machinery 1744 | -10/Subcaves | Discovered new exit (range 8) 1748 | -10/Subcaves | Discovered new exit (range 11) 1754 | -10/Subcaves | Shifting Twisted Machinery released Flamer 1770 | -10/Subcaves | Identified exit to Materials 1818 | -10/Subcaves | Shifting Twisted Machinery released Mak. Hammer 1906 | -10/Subcaves | Identified exit to Recycling 1943 | -10/Subcaves | Ambushed by Subdwellers from Twisted Machinery 1948 | -10/Subcaves | Core integrity fell below 50% 1959 | -10/Subcaves | Ambushed by Subdweller buried in earth 1966 | -10/Subcaves | Released all parts (5) 2039 | -10/Subcaves | Released all parts (2) 2060 | -10/Subcaves | Core integrity fell below 20% 2126 | -10/Subcaves | Learned location of Zion (-7) 2126 | -10/Subcaves | Met a Zionite searching for "candidates" 2228 | -10/Subcaves | Visited Clippyterm 2417 | -10/Subcaves | Destroyed by 38-980(R) with Subdweller Machine Gun Last Messages --------------- 02254_ DW-BMP(R) system corrupted by crushing effect. 02254_ DW-BMP(R) knocked back. 02255_ DW-BMP(R) system terminally corrupted. 02255_ Sub. Optics fried. 02255_ Sub. Monowheel fried. 02257_ Acquired 44 matter. 02258_ Subatomizers dissect the Broken Sub. Power Source. 02263_ System corrupted: Sub. Monowheel fused. 02317_ TC-ESQ(O) collects matter. 02324_ Sneak attack on TC-ESQ(O). 02324_ TC-ESQ(O) knocked back. 02344_ Destroyed Cobbler Unit. 02344_ TC-ESQ(O) system corrupted by crushing effect. 02389_ Lgt. Ion Engine destroyed. 02400_ Critical hit (Destroy). 02400_ Assault Rifle destroyed. PZ-JGM(R) emerges from concealment. Map ----- +----------------------------------------------------+ | ?????????????????????????######??????????????????? | | ?????????????????????##### #??????????????????? | | ????????????????????## ## ##?????????????????? | | ????????????????????# #?????????????????? | | ????????????????????# ##????????????????? | | ????????????????????## # #????????????????? | | ?????????????????????##### #????????????????? | | ?????????????????????????## #????????????????? | | ??????????????????????????# #??? #???????????? | | ??????????????????????????# ### ##??????????? | | ??????????????????????????# & #??????????? | | ?????????????????????????## ##?????????? | | ?????????????????????????# & #?????????? | | ???????????????????????### #?????????? | | ??????????????????????## #?????????? | | ??????????????????????# ## #?????????? | | ??????????????????????## R### ## ##?????????? | | ??????????????????###### #?? #?# #??????????? | | ?????????????????## ## ##?# #??# ###??????????? | | ????????????????## #??##???##????????????? | | ????????????????# #?????????????????????? | | ??????????????### ##?????##??????????????? | | ??????????????# # ###??? ##?????????????? | | ??????????????# #### ##????????????? | | ?????????????## #????????????? | | ?????????????# @ #????????????? | | ?????????????# ## ##????????????? | | ?????????????## #### ##????????????? | | ??????????????# ###???## #????????????? | | ??????????????####?????## #????????????? | | ???????????????# #####??# #????????????? | | ??????????????## ##?# ### ##????????????? | | ??????????????# ### ##??##?????????????? | | ??????????????# ## & #?????????????????? | | ??????????????# ##?????????????????? | | ??????????????# #??????????????????? | | ????????####??# ### #??????????????????? | | ???????## #### #?# #??????????????????? | | ???????# ## #?# ##?????????????????? | | ???????# ## ### #?????????????????? | | ???????# ## ##????????????????? | | ????????# #????????????????? | | ?????????# ## #???????????????? | | ????????## ##?# ##???????????????? | | ????????# ####??? #????????????????? | | ????????# ##??????# #????????????????? | | ???????## #????????###????????????????? | | ????#### #???????????????????????????? | | ????# #######???????????????????????????? | | #???## ##?????????????????????????????????? | +----------------------------------------------------+ Best States ------------- Heat Dissipation 25 Energy Generation 15 Energy Capacity 250 Matter Stores 300 Matter Capacity 300 Sight Range 16 Terrain Scan Density 10 Resistance: KI 20 Resistance: TH 20 Resistance: EX 20 Resistance: EM 20 Resistance: I 20 Resistance: S 20 Resistance: P 20 Evasion (%) 50 Recoil Reduction 2 Offensive Hacking 10 Item Schematics ----------------- None Robot Schematics ------------------ None Fabricated ------------ Nothing Alien Tech Used ----------------- None Achievements -------------- None Challenges ------------ None Game ------ Seed SmallMediumMultitool Manual? 0 Play Time 00:35:25 Cumulative 11.0 hours Start 2024.04.05 @ 23:07:36 End 2024.04.06 @ 00:19:09 Sessions 2 Manual Loads 0 Difficulty Adventurer Special Mode None Game No. 8 Rogue 0 Adventurer 8 Explorer 0 Win Type - Total 0 Types 0/0/0/0/0/0/0/0/0 Lore% 14 Gallery% 11 Achievement% 17 Wizard Run 0 Options --------- Layout 2 ASCII 0 Keyboard 1 Movement Numpad Keybinds 0 Fullscreen 2 Font 32/SmallcapsGlow Map View 50x44 Zoom Use 0% Tactical HUD 1 Map Filters NONE Filters NONE Steam 1 RUN: d3c0cadc-b262-4fbc-9834-f0b928c1a678